Cogmind - Beta 10.2 @@@ ROGUE MODE // 2022.02.10 @ 21:07:39 Player: TheLugal Result: Destroyed by G-34 Mercenary with Small Laser Performance ------------- Evolutions (1) 500 Regions Visited (2) 400 Robots Destroyed (19) 95 Value Destroyed (470) 470 Prototype IDs (0) 0 Alien Tech Used (0) 0 Bonus (0) 0 TOTAL SCORE: 1465 Bonus ------- None Cogmind --------- Core Integrity 0/400 Matter 134/300 Energy 100/100 System Corruption 6% Temperature Cool (512) Movement Core (50) Location -9/Materials Parts ------- > --- POWER (1) -------- (None) > --- PROPULSION (2) --- (None) > --- UTILITY (3) ------ Signal Interpreter > --- WEAPON (3) ------- (None) > --- INVENTORY (4) ---- (None) Peak State ------------ > --- POWER ------------ Improved Ion Engine > --- PROPULSION ------- Aluminum Leg Backup Propulsion I > --- UTILITY ---------- Sensor Array Signal Interpreter Hardlight Generator > --- WEAPON ----------- Electrolaser Beam Cannon Assault Cannon > --- INVENTORY -------- Improved Ion Engine Shield Generator High-powered Tractor Beam [Rating: 16] Favorites ----------- Power Improved Ion Engine Engine Improved Ion Engine Propulsion Wheel Leg Aluminum Leg Wheel Wheel Hover Unit Backup Propulsion I Flight Unit Flight Unit Utility Signal Interpreter Device Sensor Array Storage Medium Matter Pod Processor Signal Interpreter Protection Weapon Shielding Weapon Beam Cannon Energy Gun Electrolaser Energy Cannon Beam Cannon Ballistic Gun Light Assault Rifle Ballistic Cannon Assault Cannon Build | -11 -10 -9 ------- Run | Scr Mat Mat Slots Evolved 2 | . . 2 Power . | . . . Propulsion . | . . . Utility 1 | . . 1 Weapon 1 | . . 1 Parts Attached 31 | 9 18 4 Power 3 | 1 2 . Engine 3 | 1 2 . Core . | . . . Reactor . | . . . Propulsion 10 | 4 6 . Treads . | . . . Leg 2 | . 2 . Wheel 6 | 4 2 . Hover . | . . . Flight 2 | . 2 . Utility 8 | 1 6 1 Device 4 | . 3 1 Storage 1 | 1 . . Processor 2 | . 2 . Hackware . | . . . Protection 1 | . 1 . Artifact . | . . . Weapon 10 | 3 4 3 Energy Gun 3 | 2 . 1 Energy Cannon 1 | . 1 . Ballistic Gun 4 | 1 3 . Ballistic Cannon 2 | . . 2 Launcher . | . . . Special Weapon . | . . . Impact Weapon . | . . . Slashing Weapon . | . . . Piercing Weapon . | . . . Special Melee Weapon . | . . . Unidentified Prototypes . | . . . Parts Lost 15 | 1 7 7 Power 2 | . 1 1 Propulsion 3 | . 2 1 Utility 4 | . 2 2 Weapon 6 | 1 2 3 Highest Loss Streak 7 | 1 5 7 Average Slot Usage (%) 88 | . 89 85 Engine 12 | . 13 10 Leg 7 | . 10 1 Wheel 7 | . 11 . Hover 4 | . . 10 Device 13 | . 9 21 Storage 3 | . 5 . Processor 10 | . 10 11 Energy Gun 3 | . . 9 Energy Cannon 8 | . 7 10 Ballistic Gun 11 | . 17 . Ballistic Cannon 3 | . . 9 Naked Turns . | . . . Heaviest Build 24 | 8 14 24 Greatest Support 20 | 20 20 6 Greatest Overweight (x) 4 | . 4 3 Average Overweight (x) . | . . 2 Largest Inventory Capacity 4 | 4 4 4 Average Capacity 4 | 4 4 4 Most Carried 4 | 4 4 4 Average Carried 1 | 2 1 . Final Capacity 4 | 4 4 4 Final Carried 3 | 3 3 . Class Distribution -------------------- 55% | Mutant 24% | Skirmisher 20% | Scavenger-Mutant Dominant Class ---------------- Mutant | -10/Materials Skirmisher | -9/Materials Resources | -11 -10 -9 ----------- Run | Scr Mat Mat Matter Collected 663 | 378 265 20 Remotely 51 | . 51 . Salvage Created 549 | 54 406 89 Parts 47 | 4 36 7 Haulers Intercepted . | . . . Recyclers Shooed . | . . . Parts Field Recycled . | . . . Retrieved Matter . | . . . Parts Self-Destructed . | . . . Prevented . | . . . Kills | -11 -10 -9 ------- Run | Scr Mat Mat Combat Hostiles Destroyed 16 | 1 11 4 Guns 11 | 1 9 1 Cannons 5 | . 2 3 Classes Destroyed 4 | 2 2 . Worker 1 | 1 . . Watcher 2 | . 2 . Swarmer 5 | . 3 2 Grunt 11 | 1 8 2 Best Kill Streak 3 | 1 3 2 Combat Bots Only 3 | 1 3 2 Max Kills in Single Turn 1 | 1 1 1 Gunslinging . | . . . Exploded . | . . . Melee . | . . . Uniques/NPCs Destroyed . | . . . Combat | -11 -10 -9 -------- Run | Scr Mat Mat Damage Taken 1425 | 108 574 743 Core 539 | 11 127 401 Absorbed by Shields 9 | . 9 . Core Remaining (%) 69 | 95 44 . Volleys Fired 62 | 9 42 11 Largest 3 | 2 2 3 Hottest 167 | 90 80 167 Shots Fired 115 | 16 73 26 Gun 87 | 16 64 7 Cannon 28 | . 9 19 Launcher . | . . . Special . | . . . Kinetic 78 | 3 64 11 Thermal 37 | 13 9 15 Explosive . | . . . Electromagnetic . | . . . Robot Hit Streak 15 | 7 15 5 Robot Miss Streak 3 | 2 3 2 Penetration Max . | . . . Secondary Targets 2 | . 2 . Max Gunslinging Chain 1 | . 1 . Shots Hit Robots 76 | 11 50 15 Core Hits 32 | 3 24 5 Critical Hits . | . . . Critical Kills . | . . . Critical Parts Destroyed . | . . . Melee Attacks . | . . . Impact . | . . . Slashing . | . . . Piercing . | . . . Sneak Attacks . | . . . Combat Hostiles . | . . . Follow-up Attacks . | . . . Damage Inflicted 1006 | 100 631 275 Guns 675 | 100 475 100 Cannons 314 | . 139 175 Explosions . | . . . Melee . | . . . Ramming 17 | . 17 . Kinetic 637 | 23 475 139 Thermal 352 | 77 139 136 Explosive . | . . . Electromagnetic . | . . . Impact . | . . . Slashing . | . . . Piercing . | . . . Highest Corruption 7 | . 7 6 Average Corruption 6 | . 6 6 Corruption Purged . | . . . Effects 16 | . 16 . Message Errors 5 | . 5 . Matter Fused 3 | . 3 . Heat Flow Errors 2 | . 2 . Data Loss (minor) 4 | . 4 . Data Loss (major) 2 | . 2 . Overload Shots . | . . . Overflow Damage . | . . . Projectiles . | . . . Explosions . | . . . Melee . | . . . Knockbacks 3 | . 1 2 Impact 1 | . 1 . Kinetic 2 | . . 2 Secondary . | . . . Self-Inflicted Damage 2 | . 2 . Shots . | . . . Rammed 1 | . 1 . Targets Rammed 2 | . 2 . Kicked 1 | . 1 . Crushed . | . . . Highest Temperature 635 | 158 259 635 Average Temperature 114 | 84 36 331 Received Heat Transfer 522 | 60 225 237 Effects 15 | . 2 13 Shutdowns 1 | . . 1 Energy Bleed 1 | . . 1 Interference 2 | . 2 . Matter Decay 3 | . . 3 Damage (minor) 1 | . . 1 Damage (major) 3 | . . 3 Damage (core) 4 | . . 4 Siege Activations . | . . . Robots Corrupted . | . . . Combat Hostiles . | . . . Parts Fried . | . . . Impact Corruptions . | . . . Robots Melted . | . . . Combat Hostiles . | . . . Parts Melted 3 | 3 . . Heat Transferred 791 | 199 296 296 Parts Sabotaged . | . . . Parts Stolen . | . . . Parts Stripped . | . . . Power Chain Reactions . | . . . Missiles Intercepted . | . . . Alert | -11 -10 -9 ------- Run | Scr Mat Mat Peak Influence 283 | 20 283 81 Initial 16 | . 13 16 Average 62 | 9 94 15 Maximum Alert Level 1 | . 1 . Low Security (%) 95 | 100 92 100 Level 1 4 | . 7 . Level 2 . | . . . Level 3 . | . . . Level 4 . | . . . Level 5 . | . . . High Security . | . . . Max Security . | . . . Squads Dispatched 5 | . 5 . Investigation 2 | . 2 . Extermination . | . . . Reinforcement 3 | . 3 . Assault . | . . . Garrison . | . . . Intercept . | . . . Construction Impeded . | . . . Haulers Reinforced . | . . . Stealth | -11 -10 -9 --------- Run | Scr Mat Mat Distress Signals 2 | . 2 . Communications Jammed . | . . . Distress Signals . | . . . Times Spotted 35 | 1 24 10 Peak Tracking Total 6 | 1 5 6 Tactical Retreats 6 | . 5 1 Traps | -11 -10 -9 ------- Run | Scr Mat Mat Traps Triggered 5 | . 5 . Indirectly . | . . . Trap Hack Attempts . | . . . Triggered . | . . . Disarmed . | . . . Reprogrammed . | . . . Reused . | . . . Traps Extracted . | . . . Installed . | . . . Triggered . | . . . Machines | -11 -10 -9 ---------- Run | Scr Mat Mat Machines Disabled . | . . . Max in Single Turn . | . . . Machines Sabotaged . | . . . Garrisons Compromised . | . . . Overloaded Fab Kills . | . . . Fab Network Shutdowns . | . . . Hacking | -11 -10 -9 --------- Run | Scr Mat Mat Machines Accessed 4 | . 4 . Terminals 2 | . 2 . Fabricators . | . . . Repair Stations 1 | . 1 . Recycling Units 1 | . 1 . Scanalyzers . | . . . Garrison Access . | . . . Total Hacks 16 | . 16 . Successful 12 | . 12 . Failed 4 | . 4 . Catastrophic 1 | . 1 . Database Lockouts . | . . . Manual 1 | . 1 . Terminals 5 | . 5 . Fabricators . | . . . Repair Stations 6 | . 6 . Recycling Units 5 | . 5 . Scanalyzers . | . . . Garrison Access . | . . . Terminal Hacks 2 | . 2 . Record 1 | . 1 . Robot Analysis 1 | . 1 . Fabricator Hacks . | . . . Repair Station Hacks 5 | . 5 . Scan Component 2 | . 2 . Repair 2 | . 2 . Refit 1 | . 1 . Recycling Unit Hacks 5 | . 5 . Recycle Component 3 | . 3 . Process 1 | . 1 . Report Inventory 1 | . 1 . Scanalyzer . | . . . Garrison Access Hacks . | . . . Unauthorized Hacks . | . . . Terminals . | . . . Fabricators . | . . . Repair Stations . | . . . Recycling Units . | . . . Scanalyzers . | . . . Garrison Access . | . . . Data Cores Recovered . | . . . Used . | . . . Hacking Detections 4 | . 4 . Full Trace Events 1 | . 1 . Feedback Events 1 | . 1 . Corruption 1 | . 1 . Feedback Blocked . | . . . Robot Schematics Acquired . | . . . Robots Built . | . . . Matter . | . . . Time . | . . . Total Robot Build Rating . | . . . Part Schematics Acquired . | . . . Parts Built . | . . . Matter . | . . . Time . | . . . Total Part Build Rating . | . . . Parts Repaired 2 | . 2 . Time 52 | . 52 . Parts Recycled 3 | . 3 . Recycled Matter 12 | . 12 . Retrieved Matter . | . . . Retrieved Components . | . . . Parts Scanalyzed . | . . . Part Schematics Acquired . | . . . Parts Damaged . | . . . Bothacking | -11 -10 -9 ------------ Run | Scr Mat Mat Used RIF Installer . | . . . Robots Hacked . | . . . Non-combat . | . . . Combat . | . . . Robot Hacks Applied . | . . . Relay Couplers Released . | . . . Robots Rewired . | . . . Allies Hacked . | . . . Hacks Repelled . | . . . Allies | -11 -10 -9 -------- Run | Scr Mat Mat Total Allies . | . . . Largest Group . | . . . Highest-Rated Group . | . . . Highest-Rated Ally . | . . . Total Orders . | . . . Ally Attacks . | . . . Total Damage . | . . . Kills . | . . . Allies Corrupted . | . . . Allies Melted . | . . . Intel | -11 -10 -9 ------- Run | Scr Mat Mat Robot Analysis Total 1 | . 1 . Derelict Logs Recovered . | . . . Drone Launches . | . . . Drone Recoveries . | . . . Exploration | -11 -10 -9 ------------- Run | Scr Mat Mat Turns Passed 2202 | 221 1321 660 Spaces Moved 1274 | 194 919 161 Core 55 | 49 6 . Treads . | . . . Legs 316 | . 316 . Wheels 688 | 145 543 . Hover 207 | . 46 161 Flight 8 | . 8 . Fastest Speed 50 | 50 80 170 Average Speed 124 | 72 102 312 Slowest Speed 330 | 80 250 330 Overloaded Moves . | . . . Propulsion Burnouts . | . . . Robots Hopped . | . . . Cave-ins Triggered . | . . . Exploration Rate (%) 32 | 8 72 16 Regions Visited 2 Branch Regions . Pre-discovered Areas . | . . . Known Exits Taken 1 | . 1 . Unknown Exits Taken 1 | 1 . . Scrap Searched . | . . . Spaces Dug . | . . . Terrain Destroyed 2 | . . 2 Melee . | . . . Projectile 2 | . . 2 AOE . | . . . Terrain Rammed . | . . . Walls Destroyed . | . . . Machines Disabled . | . . . Actions | -11 -10 -9 --------- Run | Scr Mat Mat Total 1798 | 259 1239 300 Wait 364 | 34 217 113 Move 1272 | 193 918 161 Hop . | . . . Pick Up 39 | 12 23 4 Fast Attach . | . . . Attach 31 | 9 18 4 Detach 9 | . 7 2 Swap . | . . . Drop 19 | 2 12 5 Fire 62 | 9 42 11 Melee . | . . . Ram 1 | . 1 . Kick 1 | . 1 . Crush . | . . . Escape Stasis . | . . . Rewire . | . . . Trap . | . . . Miscellaneous . | . . . Route ------- -11/Scrapyard -10/Materials (discovered 3 exits: *Mat x2 / [*Min]) -9/Materials History --------- Turn | Location | Event 2 | -11/Scrapyard | Met Revision 17 90 | -11/Scrapyard | Discovered new exit (range 8) 222 | -11/Scrapyard | Entered Materials 325 | -10/Materials | Build established: Mutant 732 | -10/Materials | Discovered new exit (range 16) 748 | -10/Materials | Lost 5 parts (1p1n1u2w) 1089 | -10/Materials | Core integrity fell below 50% 1213 | -10/Materials | Discovered new exit (range 15) 1329 | -10/Materials | Build established: Scavenger-Mutant 1453 | -10/Materials | Discovered new exit (range 15) 1465 | -10/Materials | Repaired Aluminum Leg 1491 | -10/Materials | Repaired Lgt. Assault Rifle? 1541 | -10/Materials | Identified exit to Materials 1543 | -10/Materials | Entered another Materials area 1543 | -9/Materials | Evolved 2 slots: Utility x1, Weapon x1 1998 | -9/Materials | Build established: Skirmisher 2195 | -9/Materials | Core integrity fell below 50% 2201 | -9/Materials | Core integrity fell below 20% 2203 | -9/Materials | Destroyed by G-34 Mercenary with Small Laser Last Messages --------------- 02189_ Beam Cannon destroyed. 02191_ Overheating: Matter decay (-50). 02191_ G-47 Trooper knocked back. 02191_ Imp. Ion Engine destroyed. 02193_ Overheating: Core damaged (-64). 02193_ G-34 Mercenary knocked back. 02194_ Overheating: Core damaged (-80). 02195_ Overheating: Core damaged (-44). 02196_ Overheating: Matter decay (-24). 02197_ Overheating: Signal Interpreter damaged (-5). 02197_ Assault Cannon destroyed. 02197_ R-06 Scavenger collects Sml. Laser. 02199_ Sensor Array destroyed. 02199_ Hardlight Generator destroyed. 02199_ System corrupted by crushing effect (+1). 02199_ System corrupted by crushing effect (+5). 02201_ Overheating: Core damaged (-52). 02201_ R-06 Scavenger collects Aluminum Leg. 02202_ Overheating: Signal Interpreter damaged (-3). [Achievement: First Step to Greatness] Map ----- +----------------------------------------------------+ | ???????????????????????????????????????????????? | | ???????????????????????????????????????????????? | | ???????????????????????????????????????????????? | | ???????????????????????????????????????????????? | | ???????????????????????????????????????????????? | | ???????????????????????????????????????????????? | | ???????????????????????????????????????????????? | | ???????????????????????????????????????????????? | | ???????????????????????????????????????????????? | | ???????????????????????????????????????????????? | | ???????????????????????????????????????????????? | | ???????????????????????????????????????????????? | | ???????????????????????????????????????????????? | | ???????????????????????????????????????????????? | | ???????????????????????????????????????????????? | | ???????????????????????????????????????????????? | | ???????????????????????##########??????????????? | | ???????????????????????# #??????????????? | | ???????????????????????# """ # ??? ????????? | | ???????????????????????# """ # ??? ????????? | | ???????????????????????# """ # ??? ????????? | | ???????????????????????# ]r # ??? ????????? | | ???????????????????????#g %""" # ??? ????????? | | ???????????????????????# """r # ??? ????????? | | ???????????????????????#gb """ # ??? ????????? | | ???????????????????????# @ g% # #?# ????????? | | ???????????????###/#???#####+;### #?# #????????? | | ??????????????## ##### ## #?# #????????? | | ????????????? ## #?# #?######## | | ????????????? ## #?# #?# # | | ????????????? ## #?# #?# """ # | | ??????????????## ##### ## #?# #?# """ # | | ???????????????###+######## ### #?# #?# """ # | | ???????????????# #?# ### ### ### # | | ???????????????# """ ### # """ # | | ???????????????# """ + % + """ # | | ???????????????# """ ### # """ # | | ???????????????# ####+########## # # | | ???????????????# """ # #???# # """ # | | ???????????????# """ # #???# # """ # | | ???????????????# """ [# """ #???# # """ # | | ???????????????# # """ #???# # # | | ????????????????######### """ "" #???# ######## | | ????????????????????????# """ """#???# # # | | ????????????????????????# """ S"#???# # # | | ????????????????????????# #???# + # | | ????????????????????????###########???# # """ # | | ????????????????????????# """ #????# # """ # | | ????????????????????????# """"" #????# #?""" # | | ????????????????????????# """"" #????# #?#####? | +----------------------------------------------------+ Best States ------------- Heat Dissipation 28 Energy Generation 12 Energy Capacity 265 Matter Stores 400 Matter Capacity 400 Sight Range 16 Robot Scan Range 10 Terrain Scan Density 10 Weapon Shielding 33 Evasion (%) 50 Targeting Accuracy 5 Item Schematics ----------------- None Robot Schematics ------------------ None Fabricated ------------ Nothing Alien Tech Used ----------------- None Achievements -------------- Crack Shot First Step to Greatness One Hack Too Far Part-time Mechanic Uninvited Guest Challenges ------------ None Game ------ Seed ElectronProtonThrusters Manual? 0 Play Time 01:05:06 Cumulative 2.1 hours Start 2022.02.10 @ 19:34:08 End 2022.02.10 @ 21:07:39 Sessions 1 Manual Loads 0 Difficulty Rogue Special Mode None Game No. 1 Rogue 1 Adventurer 0 Explorer 0 Win Type - Total 0 Types 0/0/0/0/0/0/0/0/0 Lore% 0 Gallery% 2 Achievement% 1 Wizard Run 0 Options --------- ASCII 0 Keyboard 0 Movement Numpad Keybinds 0 Fullscreen 2 Font 16/SmallcapsGlow Map View 76x50 Tactical HUD 1 Map Filters NONE Filters NONE Steam 1 RUN: 5d6a7306-5c1c-4939-879d-d82a66680948